Cogmind - Beta 17.1 @@@ ROGUE MODE // 2026.08.26 @ 17:16:41 Player: jat Result: Destroyed by H-55 Commando with Gauss Rifle Performance ------------- Evolutions (1) 500 Regions Visited (5) 1000 Robots Destroyed (37) 185 Value Destroyed (860) 860 Prototype IDs (0) 0 Alien Tech Used (0) 0 Bonus (0) 0 TOTAL SCORE: 2545 Bonus ------- None Cogmind --------- Core Integrity 0/400 Matter 299/300 Energy 325/325 System Corruption 0% Temperature Warm (110) Movement Flying (37) Location -8/Mines Parts ------- > --- POWER (1) -------- Light Ion Engine > --- PROPULSION (3) --- Flight Unit Flight Unit > --- UTILITY (3) ------ Compact Battery > --- WEAPON (2) ------- Spread Laser Light Assault Rifle > --- INVENTORY (5) ---- Light Ion Engine Carbon-fiber Leg Flight Unit Flight Unit Flight Unit Peak State ------------ > --- POWER ------------ Light Nuclear Core > --- PROPULSION ------- Carbon-fiber Leg Carbon-fiber Leg Carbon-fiber Leg > --- UTILITY ---------- Improved Heat Sink High-capacity Matter Pod Terrain Scanner > --- WEAPON ----------- Medium Laser Particle Cannon > --- INVENTORY -------- Carbon-fiber Leg Heat Sink Compact Battery Compact Battery Grenade Launcher [Rating: 21] Favorites ----------- Power Light Nuclear Core Engine Ion Engine Power Core Light Nuclear Core Propulsion Carbon-fiber Leg Leg Carbon-fiber Leg Wheel Wheel Flight Unit Flight Unit Utility High-capacity Matter Pod Device Heat Sink Storage High-capacity Matter Pod Weapon Assault Rifle Energy Gun Medium Laser Energy Cannon Particle Cannon Ballistic Gun Assault Rifle Launcher Grenade Launcher Build | -11 -10 -9 -9 -9 -8 ------- Run | Yrd Mat Mat Min Exi Min Slots Evolved 2 | . . 2 . . . Power . | . . . . . . Propulsion 1 | . . 1 . . . Utility 1 | . . 1 . . . Weapon . | . . . . . . Parts Attached 39 | 5 10 12 6 . 6 Power 5 | 1 1 2 . . 1 Engine 3 | 1 1 . . . 1 Core 2 | . . 2 . . . Reactor . | . . . . . . Propulsion 16 | 2 6 4 1 . 3 Treads . | . . . . . . Leg 10 | . 5 4 1 . . Wheel 2 | 2 . . . . . Hover . | . . . . . . Flight 4 | . 1 . . . 3 Utility 7 | . 1 4 1 . 1 Device 4 | . 1 3 . . . Storage 3 | . . 1 1 . 1 Processor . | . . . . . . Hackware . | . . . . . . Protection . | . . . . . . Artifact . | . . . . . . Weapon 11 | 2 2 2 4 . 1 Energy Gun 4 | . 1 . 3 . . Energy Cannon 1 | . . 1 . . . Ballistic Gun 4 | 2 1 . . . 1 Ballistic Cannon . | . . . . . . Launcher 2 | . . 1 1 . . Special Weapon . | . . . . . . Impact Weapon . | . . . . . . Slashing Weapon . | . . . . . . Piercing Weapon . | . . . . . . Special Melee Weapon . | . . . . . . Unidentified Prototypes . | . . . . . . Parts Lost 20 | . 2 3 9 . 6 Power 2 | . . 1 1 . . Propulsion 8 | . 2 2 2 . 2 Utility 5 | . . . 3 . 2 Weapon 5 | . . . 3 . 2 Highest Loss Streak 4 | . 2 3 4 . 4 To Critical Strikes . | . . . . . . Average Backups 3 | 1 2 4 4 2 2 Power . | . . . . . . Propulsion . | . 1 . . . 1 Utility 1 | . . . 2 1 . Weapon 1 | . . 2 1 1 . Tool/Special . | . . . . . . Unused Backups 4 | . . . . . 4 Power 1 | . . . . . 1 Propulsion 3 | . . . . . 3 Utility . | . . . . . . Weapon . | . . . . . . Tool/Special . | . . . . . . Average Slot Usage (%) 80 | . 75 97 83 66 67 Engine 3 | . 14 . . . 6 Core 4 | . . 10 7 . . Leg 23 | . 13 31 30 22 6 Wheel 2 | . 12 . . . . Flight 1 | . . . . . 20 Device 10 | . 6 21 12 . . Storage 11 | . . 10 13 22 18 Energy Gun 7 | . 4 9 11 . 8 Energy Cannon 2 | . . 9 2 . . Ballistic Gun 5 | . 23 1 . . 3 Launcher 5 | . . 1 5 22 3 Peak Build Rating 21 | 5 6 21 21 13 13 Average Rating 12 | 2 5 12 17 13 11 On Entrance 9 | . 5 6 21 13 13 Avg Prop Armor Cover (%) . | . . . . . . Naked Turns . | . . . . . . Heaviest Build 18 | 9 10 18 17 12 12 Greatest Support 45 | 20 20 45 45 30 30 Greatest Overweight (x) 2 | . 2 1 . . . Average Overweight (x) . | . . . . . . Largest Inventory Capacity 5 | 5 5 5 5 5 5 Average Capacity 5 | 5 5 5 5 5 5 Most Carried 5 | 5 5 5 5 2 5 Average Carried 3 | 1 2 4 4 2 2 Final Capacity 5 | 5 5 5 5 5 5 Final Carried 5 | . 5 5 2 2 5 Class Distribution -------------------- 64% | Mutant 35% | Scavenger-Mutant Dominant Class ---------------- Mutant | -10/Materials Scavenger-Mutant | -9/Materials Mutant | -9/Mines Mutant | -9/Exiles Scavenger-Mutant | -8/Mines Resources | -11 -10 -9 -9 -9 -8 ----------- Run | Yrd Mat Mat Min Exi Min Matter Collected 1021 | . 446 319 196 . 60 Remotely . | . . . . . . Salvage Created 980 | . 375 385 145 . 75 Parts 67 | . 30 19 9 . 9 Haulers Intercepted . | . . . . . . Recyclers Shooed . | . . . . . . Parts Field Recycled . | . . . . . . Retrieved Matter . | . . . . . . Parts Self-Destructed . | . . . . . . Prevented . | . . . . . . Parts Restored . | . . . . . . Kills | -11 -10 -9 -9 -9 -8 ------- Run | Yrd Mat Mat Min Exi Min Combat Hostiles Destroyed 35 | . 10 7 12 . 6 Guns 21 | . 10 1 4 . 6 Cannons 10 | . . 5 5 . . AOE 3 | . . . 3 . . Classes Destroyed 8 | . 4 2 1 . 1 Worker 2 | . 2 . . . . Builder 1 | . . 1 . . . Watcher 4 | . 1 3 . . . Swarmer 14 | . 3 . 6 . 5 Grunt 13 | . 7 5 1 . . Sentry 2 | . . 2 . . . Hunter 1 | . . . . . 1 Assembled 5 | . . . 5 . . Best Kill Streak 6 | . 6 5 3 . 3 Combat Bots Only 5 | . 5 2 3 . 3 Max Kills in Single Turn 2 | . 2 1 2 . 2 Gunslinging 1 | . 1 . . . . Exploded 2 | . . . 2 . . Melee . | . . . . . . Uniques/NPCs Destroyed . | . . . . . . Combat | -11 -10 -9 -9 -9 -8 -------- Run | Yrd Mat Mat Min Exi Min Hostile Shots Fired 252 | . 60 50 79 . 63 Missed 69 | . 9 11 29 . 20 Hits 183 | . 51 39 50 . 43 Melee 6 | . . . 6 . . Projectile 177 | . 51 39 44 . 43 Critical Strikes 5 | . 1 1 1 . 2 Damage Taken 2319 | . 559 518 770 . 472 Core 551 | . 144 63 192 . 152 Absorbed by Shields . | . . . . . . Core Remaining (%) 71 | 100 42 . . . . Volleys Fired 99 | . 33 25 25 . 16 Largest 2 | . 2 2 2 . 2 Hottest 130 | . 70 118 130 . 85 Shots Fired 171 | . 66 48 35 . 22 Gun 120 | . 66 23 13 . 18 Cannon 38 | . . 23 15 . . Launcher 13 | . . 2 7 . 4 Special . | . . . . . . Kinetic 63 | . 59 . . . 4 Thermal 95 | . 7 46 28 . 14 Explosive 13 | . . 2 7 . 4 Electromagnetic . | . . . . . . Robot Hit Streak 10 | . 10 10 5 . 8 Robot Miss Streak 6 | . 5 2 3 . 6 Penetration Max . | . . . . . . Secondary Targets 3 | . 3 . . . . Max Gunslinging Chain 1 | . 1 . . . . Shots Hit Robots 110 | . 45 28 19 . 18 Core Hits 81 | . 25 14 21 . 21 Critical Kills . | . . . . . . Critical Parts Destroyed . | . . . . . . Critical Strikes 2 | . . . 2 . . Burn 2 | . . . 2 . . Melee Attacks . | . . . . . . Impact . | . . . . . . Slashing . | . . . . . . Piercing . | . . . . . . Sneak Attacks . | . . . . . . Combat Hostiles . | . . . . . . Follow-up Attacks . | . . . . . . Damage Inflicted 1956 | . 555 634 478 . 289 Guns 1115 | . 552 197 139 . 227 Cannons 572 | . . 367 205 . . Explosions 266 | . . 70 134 . 62 Melee . | . . . . . . Ramming 3 | . 3 . . . . Kinetic 512 | . 489 . . . 23 Thermal 1175 | . 63 564 344 . 204 Explosive 266 | . . 70 134 . 62 Electromagnetic . | . . . . . . Impact . | . . . . . . Slashing . | . . . . . . Piercing . | . . . . . . Highest Corruption . | . . . . . . Average Corruption . | . . . . . . Corruption Purged . | . . . . . . Corruption Blocked . | . . . . . . Overload Shots . | . . . . . . Overflow Damage 6 | . . 6 . . . Projectiles . | . . . . . . Explosions 6 | . . 6 . . . Melee . | . . . . . . Knockbacks . | . . . . . . Impact . | . . . . . . Kinetic . | . . . . . . Secondary . | . . . . . . Self-Inflicted Damage 17 | . . 17 . . . Shots 1 | . . 1 . . . Rammed . | . . . . . . Targets Rammed 1 | . 1 . . . . Kicked 1 | . 1 . . . . Crushed . | . . . . . . Highest Temperature 216 | . 42 216 149 . 131 Average Temperature 58 | . 14 84 58 . 47 Received Heat Transfer 609 | . 276 225 108 . . Siege Activations . | . . . . . . Martial Activations . | . . . . . . Shielding Activations . | . . . . . . Robots Disrupted . | . . . . . . Combat Hostiles . | . . . . . . Robots Corrupted . | . . . . . . Combat Hostiles . | . . . . . . Parts Fried . | . . . . . . Impact Corruptions . | . . . . . . Robots Melted 1 | . . 1 . . . Combat Hostiles 1 | . . 1 . . . Parts Melted 4 | . . 2 2 . . Heat Transferred 2496 | . 185 1258 803 . 250 Parts Sabotaged . | . . . . . . Parts Stolen . | . . . . . . Parts Stripped . | . . . . . . Power Chain Reactions . | . . . . . . Alert | -11 -10 -9 -9 -9 -8 ------- Run | Yrd Mat Mat Min Exi Min Maximum Alert Level . | . . . . . . Low Security (%) 100 | 100 100 100 100 . 100 Level 1 . | . . . . . . Level 2 . | . . . . . . Level 3 . | . . . . . . Level 4 . | . . . . . . Level 5 . | . . . . . . High Security . | . . . . . . Max Security . | . . . . . . Peak Influence 154 | . 137 122 154 . 110 Initial 49 | . . 49 39 . . Average 65 | . 80 49 68 . 67 Influence Increases 876 | . 267 233 207 . 169 Destroy 0b10 Robot/C 600 | . 200 140 140 . 120 Destroy 0b10 Robot/NC 35 | . 15 20 . . . Destroy Leader 158 | . 52 56 30 . 20 Successful Hack 5 | . . 5 . . . Disable Machine 15 | . . . 15 . . Destroy Structure 63 | . . 12 22 . 29 Influence Decreases 806 | . 150 248 309 . 99 Entered New Map 131 | . . 68 63 . . Time Decay 505 | . 130 150 175 . 50 Lost Part 170 | . 20 30 71 . 49 Squads Dispatched 5 | . 2 3 . . . Investigation 1 | . . 1 . . . Extermination . | . . . . . . Reinforcement 4 | . 2 2 . . . Assault . | . . . . . . Garrison . | . . . . . . Intercept . | . . . . . . Searches Triggered . | . . . . . . Construction Impeded . | . . . . . . Haulers Reinforced . | . . . . . . Active Scanning Responses . | . . . . . . Cargo Convoy Interrupts . | . . . . . . Stealth | -11 -10 -9 -9 -9 -8 --------- Run | Yrd Mat Mat Min Exi Min Distress Signals 2 | . 1 1 . . . Communications Jammed . | . . . . . . Distress Signals . | . . . . . . Times Spotted 69 | . 15 19 27 . 8 Peak Tracking Total 14 | . 7 6 14 . 3 Tactical Retreats 1 | . . . 1 . . Traps | -11 -10 -9 -9 -9 -8 ------- Run | Yrd Mat Mat Min Exi Min Traps Triggered . | . . . . . . Indirectly . | . . . . . . Trap Hack Attempts . | . . . . . . Triggered . | . . . . . . Disarmed . | . . . . . . Reprogrammed . | . . . . . . Reused . | . . . . . . Traps Extracted . | . . . . . . Installed . | . . . . . . Triggered . | . . . . . . Machines | -11 -10 -9 -9 -9 -8 ---------- Run | Yrd Mat Mat Min Exi Min Machines Disabled 1 | . . . 1 . . Max in Single Turn 1 | . . . 1 . . Machines Repaired . | . . . . . . Machines Dismantled . | . . . . . . Machines Sabotaged . | . . . . . . Overloaded Fab Kills . | . . . . . . Hacking | -11 -10 -9 -9 -9 -8 --------- Run | Yrd Mat Mat Min Exi Min Machines Accessed 3 | . . 3 . . . Terminals 2 | . . 2 . . . Fabricators . | . . . . . . Repair Stations . | . . . . . . Recycling Units . | . . . . . . Scanalyzers 1 | . . 1 . . . Garrison Access . | . . . . . . Total Hacks 9 | . . 9 . . . Successful 6 | . . 6 . . . Failed 3 | . . 3 . . . Catastrophic . | . . . . . . Database Lockouts . | . . . . . . Manual . | . . . . . . Terminals 6 | . . 6 . . . Fabricators . | . . . . . . Repair Stations . | . . . . . . Recycling Units . | . . . . . . Scanalyzers 3 | . . 3 . . . Garrison Access . | . . . . . . Terminal Hacks 3 | . . 3 . . . Branch Access Points 1 | . . 1 . . . Locate Traps 1 | . . 1 . . . Zone Layout 1 | . . 1 . . . Fabricator Hacks . | . . . . . . Repair Station Hacks . | . . . . . . Recycling Unit Hacks . | . . . . . . Scanalyzer 3 | . . 3 . . . Retrieve Study 3 | . . 3 . . . Garrison Access Hacks . | . . . . . . Unauthorized Hacks . | . . . . . . Terminals . | . . . . . . Fabricators . | . . . . . . Repair Stations . | . . . . . . Recycling Units . | . . . . . . Scanalyzers . | . . . . . . Garrison Access . | . . . . . . Data Cores Recovered . | . . . . . . Used . | . . . . . . Hacking Detections 2 | . . 2 . . . Full Trace Events 1 | . . 1 . . . Feedback Events . | . . . . . . Feedback Blocked . | . . . . . . Robot Schematics Acquired . | . . . . . . Robots Built . | . . . . . . Authchips . | . . . . . . Time . | . . . . . . Total Robot Build Rating . | . . . . . . Part Schematics Acquired . | . . . . . . Parts Built . | . . . . . . Authchips . | . . . . . . Time . | . . . . . . Total Part Build Rating . | . . . . . . Part Studies Acquired 3 | . . 3 . . . Parts Repaired . | . . . . . . Time . | . . . . . . Parts Recycled . | . . . . . . Recycled Matter . | . . . . . . Retrieved Matter . | . . . . . . Retrieved Components . | . . . . . . Parts Scanalyzed . | . . . . . . Part Schematics Acquired . | . . . . . . Parts Damaged . | . . . . . . Bothacking | -11 -10 -9 -9 -9 -8 ------------ Run | Yrd Mat Mat Min Exi Min Used RIF Installer . | . . . . . . Robots Hacked . | . . . . . . Non-combat . | . . . . . . Combat . | . . . . . . Robot Hacks Applied . | . . . . . . Relay Couplers Released . | . . . . . . Fabnet Peak Effective % . | . . . . . . Robots Rewired . | . . . . . . Allies Hacked . | . . . . . . Hacks Repelled . | . . . . . . Allies | -11 -10 -9 -9 -9 -8 -------- Run | Yrd Mat Mat Min Exi Min Total Allies . | . . . . . . Largest Group . | . . . . . . Highest-Rated Group . | . . . . . . Highest-Rated Ally . | . . . . . . Total Orders . | . . . . . . Ally Attacks . | . . . . . . Total Damage . | . . . . . . Kills . | . . . . . . Allies Corrupted . | . . . . . . Allies Melted . | . . . . . . Intel | -11 -10 -9 -9 -9 -8 ------- Run | Yrd Mat Mat Min Exi Min Active Infowar (turns) 512 | . . 187 325 . . Terrain 512 | . . 187 325 . . Robot Analysis Total . | . . . . . . Derelict Logs Recovered . | . . . . . . Drone Launches . | . . . . . . Drone Recoveries . | . . . . . . Exploration | -11 -10 -9 -9 -9 -8 ------------- Run | Yrd Mat Mat Min Exi Min Turns Passed 1500 | 26 335 334 464 214 127 Spaces Moved 1087 | 25 206 199 325 179 153 Core 15 | 11 4 . . . . Treads . | . . . . . . Legs 825 | . 104 199 325 179 18 Wheels 112 | 14 98 . . . . Hover . | . . . . . . Flight 135 | . . . . . 135 Fastest Speed 34 | 50 80 105 120 120 34 Average Speed 104 | 66 101 118 120 120 44 Slowest Speed 175 | 80 150 175 120 120 120 Overloaded Moves . | . . . . . . Propulsion Burnouts . | . . . . . . Robots Hopped . | . . . . . . Potential Cave-ins . | . . . . . . Cave-ins Triggered . | . . . . . . Exploration Rate (%) 37 | 3 36 22 65 61 37 Regions Visited 5 Branch Regions 3 Pre-discovered Areas . | . . . . . . Known Exits Taken 1 | . . 1 . . . Unknown Exits Taken 4 | 1 1 . 1 1 . Scrap Searched 2 | . . . 2 . . Spaces Dug . | . . . . . . Terrain Destroyed 87 | . . 10 35 . 42 Melee . | . . . . . . Projectile . | . . . . . . AOE 87 | . . 10 35 . 42 Terrain Rammed . | . . . . . . Walls Destroyed . | . . . . . . Machines Disabled . | . . . . . . Actions | -11 -10 -9 -9 -9 -8 --------- Run | Yrd Mat Mat Min Exi Min Total 1279 | 34 268 248 361 178 190 Wait 5 | . . . . . 5 Move 1082 | 24 205 198 324 178 153 Hop . | . . . . . . Pick Up 32 | 5 10 7 1 . 9 Fast Attach 5 | . . 2 3 . . Attach 23 | 5 4 4 4 . 6 Detach 1 | . 1 . . . . Swap 19 | . 8 7 3 . 1 Drop 12 | . 6 5 1 . . Fire 99 | . 33 25 25 . 16 Melee . | . . . . . . Ram . | . . . . . . Kick 1 | . 1 . . . . Crush . | . . . . . . Escape Stasis . | . . . . . . Rewire . | . . . . . . Trap . | . . . . . . Miscellaneous . | . . . . . . Route ------- -11/Scrapyard -10/Materials -9/Materials (discovered 2 exits: *Min x2) -9/Mines -9/Exiles -8/Mines History --------- Turn | Location | Event 10 | -11/Scrapyard | Discovered new exit (range 16) 27 | -11/Scrapyard | Entered Materials 180 | -10/Materials | Core integrity fell below 50% 307 | -10/Materials | Build established: Mutant 323 | -10/Materials | Discovered new exit (range 10) 362 | -10/Materials | Entered another Materials area 362 | -9/Materials | Evolved 2 slots: Propulsion x1, Utility x1 430 | -9/Materials | Identified exit to Mines 615 | -9/Materials | Build established: Scavenger-Mutant 677 | -9/Materials | Lost 3 parts (1p2n) 696 | -9/Materials | Entered Mines 975 | -9/Mines | Received a Rocket Launcher from a helpful Derelict 1003 | -9/Mines | Assembled infested the area 1034 | -9/Mines | Core integrity fell below 50% 1067 | -9/Mines | Lost 4 parts (1p1n1u1w) 1154 | -9/Mines | Deemed a non-threat by the Exiles lab entrance 1155 | -9/Mines | Discovered new exit (range 5) 1160 | -9/Mines | Entered Exiles 1189 | -9/Exiles | Met 8R-AWN 1211 | -9/Exiles | Met EX-HEX 1246 | -9/Exiles | Met EX-BIN 1282 | -9/Exiles | Met EX-DEC 1318 | -9/Exiles | Build established: Mutant 1357 | -9/Exiles | Discovered new exit (range 14) 1374 | -9/Exiles | Entered Mines 1390 | -8/Mines | Core integrity fell below 20% 1428 | -8/Mines | Lost 4 parts (1n1u2w) 1501 | -8/Mines | Destroyed by H-55 Commando with Gauss Rifle Last Messages --------------- 01405_ Acquired Lgt. Ion Engine. 01408_ Acquired Flight Unit. 01417_ The unstable cave ceiling collapses. 01423_ Acquired 18 matter. 01423_ Acquired 6 matter. 01424_ Acquired 15 matter. 01445_ S-10 Pest destroyed. 01448_ Acquired Flight Unit. 01451_ S-10 Pest destroyed. 01458_ Acquired Lgt. Assault Rifle. 01460_ Acquired 7 matter. 01461_ Acquired Flight Unit. 01463_ Acquired Lgt. Ion Engine. 01464_ Acquired 14 matter. 01465_ Acquired Flight Unit. 01495_ Slug penetrates Wall. 01495_ Flight Unit destroyed. 01498_ Penetrated by Slug. 01498_ Com. Battery destroyed. 01498_ Core Extractor disabled. Map ----- +----------------------------------------------------+ | ???????????????????????????????????????????? | | ???????????????????????????????????????????? | | ???????????????????????????????????????????? | | ???????????????????????????????????????????? | | ???????????????????????????????????????????? | | ???????????????????????????????????????????? | | ???????????????????????????????????????????? | | ???????????????????????????????????????????? | | ???????????????????????????????????????????? | | ???????????????????????????????????????????? | | ???????????????????????????????????????????? | | ???????????????????????????????????????????? | | ???????????????????????????????????????????? | | ???????????????????????????????????????????? | | ???????????????????????????????????????????? | | ???????????????????????????????????????????? | | ???????????????????????????????????????????? | | ???????????????????????????????????????????? | | ???????####????????????????????????????????? | | ???????# ##???????????????????????????????? | | ??????## #???????????????????????????????? | | ????### ##??????????????????????????????? | | ???## ######?????????????????????????? | | ???# ###???????????????????????? | | ???# """ ########????????????????? | | ???## "" @ h #??????????###???? | | ???## """ ##### #?????????? #???? | | ???# #???#???????????? #???? | | ??## #???? ########??? #???? | | ??# ### ##????? ##?? #???? | | ??# ##?### #####??????? ##? #???# | | ??# ##???## #?????####???# ## #???# | | ??# #????# #????## ##### # #???? | | ??# ##???# ###### #???? | | ??# #### ## ##??? | | ??# ### ### #??? | | ??# ##?# #### ##?####### #??? | | ??# ####??# #??## ##????????## #??? | | ??### ###?????# #???####??????????# #?## | | ????# #???????# #?????????????????# #?# | | ????# #???????# #?????????????????# ##?# | | ????# #???????# #?????????????????# #??# | | ????# #???????# #?????????????????## ##?# | | ????# #???????# #??????????????????# #?# | | ????# #???????# #?????????????????## ### | | ????# #??????## #?????????????????# | | ????# #?????##% ##????????????????# ##### | | ????# #?????# ####?????????????# #??? | | ????# ####### ##????????????# #?? | | ????# % #????????????# #?? | +----------------------------------------------------+ Best States ------------- Heat Dissipation 48 Energy Generation 14 Energy Capacity 525 Matter Stores 500 Matter Capacity 500 Sight Range 16 Terrain Scan Range 14 Terrain Scan Density 10 Evasion (%) 63 Item Schematics ----------------- None Robot Schematics ------------------ None Fabricated ------------ Nothing Repaired ---------- Nothing Studied --------- Aluminum Leg | -9/Materials | Hacked Grenade Launcher | -9/Materials | Hacked Particle Cannon | -9/Materials | Hacked Alien Tech Used ----------------- None Achievements -------------- I Survived The Infestation Slippery One Challenges ------------ None Game ------ Seed FrostCoolingFist Manual? 0 Play Time 00:21:21 Cumulative 20.3 hours Start 2026.08.26 @ 13:23:43 End 2026.08.26 @ 17:16:41 Sessions 3 Manual Loads 0 Difficulty Rogue Special Mode None Game No. 26 Rogue 21 Adventurer 5 Explorer 0 Win Type - Total 0 Types 0/0/0/0/0/0/0/0/0/0 Lore% 17 Gallery% 22 Achievement% 21 Wizard Run 0 Options --------- Layout 1 ASCII 0 Keyboard 0 Movement Mouse Keybinds 0 Fullscreen 2 Font 24/Smallcaps Map View 50x35 Zoom Use 0% Tactical HUD 1 Map Filters NONE Filters NONE Steam 1 RUN: 0061419b-8c0d-461b-a4d3-bb9c85574dff